fUSD/lending_fUSD_20250531
["ID","MTS","AMOUNT","RATE_DAILY","PERIOD"]
[363255642,1748651451314,-210.0,0.0003,2]
[363255643,1748651451325,-210.0,0.0003,2]
[363255644,1748651451335,-12058.65698714,0.0003,3]
[363255645,1748651451345,-1800.0,0.0003,31]
[363255646,1748651451355,-93802.90651178,0.0003,5]
[363255647,1748651451366,-463.981251,0.0003,7]
[363255648,1748651451376,-463.981251,0.0003,7]
[363255649,1748651451386,-877.2786754,0.0003,2]
[363255650,1748651451396,-209.2,0.0003,2]
[363255651,1748651451406,-209.2,0.0003,2]
[363255652,1748651451416,-151.0,0.0003,7]
[363255653,1748651451426,-151.0,0.0003,7]
[363255654,1748651451436,-151.0,0.0003,7]
[363255655,1748651451446,-151.0,0.0003,7]
[363255656,1748651451456,-151.0,0.0003,7]
[363255657,1748651451466,-151.0,0.0003,7]
[363255658,1748651451475,-151.0,0.0003,7]
[363255659,1748651451485,-151.0,0.0003,7]
[363255660,1748651451495,-151.0,0.0003,7]
[363255661,1748651451505,-151.0,0.0003,7]
[363255662,1748651451514,-151.0,0.0003,7]
[363255663,1748651451524,-154.544763,0.0003,7]
[363255664,1748651451537,-151.0,0.0003,7]
[363255665,1748651451547,-154.544763,0.0003,7]
[363255666,1748651451557,-151.0,0.0003,7]
[363255667,1748651451567,-182.246385,0.0003,7]
[363255668,1748651451576,-167.215382,0.0003,7]
[363255669,1748651451586,-167.215382,0.0003,7]
[363255670,1748651451595,-151.0,0.0003,7]
[363255671,1748651451605,-151.0,0.0003,7]
[363255672,1748651451615,-151.0,0.0003,7]
[363255673,1748651451625,-196.974068,0.0003,7]
[363255674,1748651451635,-196.974068,0.0003,7]
[363255675,1748651451645,-151.0,0.0003,7]
[363255676,1748651451655,-151.0,0.0003,7]
[363255677,1748651451664,-151.0,0.0003,7]
[363255678,1748651451674,-41260.02077897,0.0003,5]
[363255679,1748651451683,-476.0403,0.0003,2]
[363255680,1748651451693,-659.4164,0.0003,2]
[363255681,1748651451703,-159.0,0.0003,22]
[363255682,1748651451714,-291.767278,0.0003,7]
[363255683,1748651451724,-291.767278,0.0003,7]
[363255684,1748651451733,-214.0,0.0003,2]
[363255685,1748651451743,-163.534702,0.0003,7]
[363255686,1748651451752,-163.534702,0.0003,7]
[363255687,1748651451762,-1500.0,0.0003,2]
[363255688,1748651451772,-4000.0,0.0003,4]
[363255689,1748651451784,-151.0,0.00030004,7]
[363255690,1748651451793,-151.0,0.00030004,7]
[363255691,1748651451803,-1000.0,0.00030027,2]
[363255692,1748651451812,-2110.0,0.00030031,2]
[363255693,1748651451822,-166.8,0.00030063,120]
[363255694,1748651451831,-5464.360598,0.00030065,7]
[363255695,1748651451841,-5464.360598,0.00030065,7]
[363255696,1748651451850,-151.0,0.00030065,7]
[363255697,1748651451860,-500.0,0.00030104,30]
[363255698,1748651451870,-12098.09,0.0003011,2]
[363255699,1748651451879,-151.0,0.0003011,7]
[363255700,1748651451889,-180.642932,0.0003011,7]
[363255701,1748651451899,-180.642932,0.0003011,7]
[363255702,1748651451908,-260.832496,0.0003011,7]
[363255703,1748651451918,-260.832496,0.0003011,7]
[363255704,1748651451928,-6560.17031252,0.0003013,2]
[363255705,1748651451938,-5017.72249952,0.0003013,2]
[363255706,1748651451948,-195.43003011,0.0003013,2]
[363255707,1748651451958,-268.28222295,0.0003013,2]
[363255708,1748651451968,-207.42413151,0.00030137,60]
[363255709,1748651451978,-600.0,0.00030137,2]
[363255710,1748651451988,-7778.12,0.00030137,2]
[363255711,1748651451998,-961.27,0.00030164,30]
[363255712,1748651452008,-387.39194048,0.00030199,10]
[363255713,1748651452019,-1613.0,0.00030202,2]
[363255714,1748651452031,-419.0,0.00030205,14]
[363255715,1748651452042,-683.29,0.0003023,2]
[363255716,1748651452052,-207.76797,0.00030242,7]
[363255717,1748651452061,-4503.46656889,0.00030245,22]
[363255718,1748651452072,-500.0,0.00030273,30]
[363255719,1748651452082,-150.0,0.00030281,2]
[363255720,1748651452092,-163.534702,0.0003031,7]
[363255721,1748651452102,-163.534702,0.0003031,7]
[363255722,1748651452112,-500.0,0.0003032,2]
[363255723,1748651452123,-500.0,0.0003032,2]
[363255724,1748651452132,-500.0,0.0003032,2]
[363255725,1748651452142,-500.0,0.0003032,2]
[363255726,1748651452151,-500.0,0.0003032,2]
[363255727,1748651452161,-500.0,0.0003032,2]
[363255728,1748651452171,-500.0,0.0003032,2]
[363255729,1748651452180,-500.0,0.0003032,2]
[363255730,1748651452190,-500.0,0.0003032,2]
[363255731,1748651452200,-500.0,0.0003032,2]
[363255732,1748651452210,-500.0,0.0003032,2]
[363255733,1748651452221,-500.0,0.0003032,2]
[363255734,1748651452230,-500.0,0.0003032,2]
[363255735,1748651452240,-500.0,0.0003032,2]
[363255736,1748651452250,-500.0,0.0003032,2]
[363255737,1748651452260,-500.0,0.0003032,2]
[363255738,1748651452270,-500.0,0.0003032,2]
[363255739,1748651452282,-500.0,0.0003032,2]
[363255740,1748651452293,-500.0,0.0003032,2]
[363255741,1748651452303,-500.0,0.0003032,2]
[363255742,1748651452313,-500.0,0.0003032,2]
[363255743,1748651452326,-500.0,0.0003032,2]
[363255744,1748651452335,-500.0,0.0003032,2]
[363255745,1748651452345,-500.0,0.0003032,2]
[363255746,1748651452354,-500.0,0.0003032,2]
[363255747,1748651452365,-500.0,0.0003032,2]
[363255748,1748651452374,-500.0,0.0003032,2]
[363255749,1748651452384,-500.0,0.0003032,2]
[363255750,1748651452393,-500.0,0.0003032,2]
[363255751,1748651452403,-500.0,0.0003032,2]
[363255752,1748651452412,-500.0,0.0003032,2]
[363255753,1748651452422,-500.0,0.0003032,2]
[363255754,1748651452431,-500.0,0.0003032,2]
[363255755,1748651452440,-500.0,0.0003032,2]
[363255756,1748651452449,-500.0,0.0003032,2]
[363255757,1748651452459,-500.0,0.0003032,2]
[363255758,1748651452469,-500.0,0.0003032,2]
[363255759,1748651452478,-500.0,0.0003032,2]
[363255760,1748651452488,-500.0,0.0003032,2]
[363255761,1748651452497,-500.0,0.0003032,2]
[363255762,1748651452506,-500.0,0.0003032,2]
[363255763,1748651452516,-500.0,0.0003032,2]
[363255764,1748651452525,-500.0,0.0003032,2]
[363255765,1748651452536,-511.0,0.0003032,2]
[363255766,1748651452545,-500.0,0.0003032,2]
[363255767,1748651452555,-500.0,0.0003032,2]
[363255768,1748651452564,-500.0,0.0003032,2]
[363255769,1748651452574,-500.0,0.0003032,2]
[363255770,1748651452584,-500.0,0.0003032,2]
[363255771,1748651452594,-500.0,0.0003032,2]
[363255772,1748651452605,-500.0,0.0003032,2]
[363255773,1748651452615,-500.0,0.0003032,2]
[363255774,1748651452627,-753.0,0.0003032,2]
[363255775,1748651452637,-500.0,0.0003032,2]
[363255776,1748651452647,-325.46558415,0.00030321,5]
[363255777,1748651452657,-371.30836325,0.00030336,2]
[363255778,1748651452667,-500.0,0.00030378,30]
[363255779,1748651452676,-500.0,0.00030378,30]
[363255780,1748651452685,-2000.0,0.000304,2]
[363255781,1748651452695,-300.78,0.00030411,2]
[363255782,1748651452705,-2799.91316558,0.00030416,2]
[363255783,1748651452714,-463.54,0.00030437,2]
[363255784,1748651452723,-371.30836325,0.00030518,2]
[363255785,1748651452733,-2110.0,0.00030531,2]
[363255786,1748651452742,-604.07069939,0.00030547,30]
[363255787,1748651452752,-152.0,0.00030553,4]
[363255788,1748651452761,-590.16455689,0.00030613,30]
[363255789,1748651452771,-421.98681058,0.00030652,30]
[363255790,1748651452782,-1666.66667,0.0003068,2]
[363255791,1748651452791,-806.79,0.00030685,2]
[363255792,1748651452801,-806.79,0.00030685,2]
[363255793,1748651452810,-806.79,0.00030685,2]
[363255794,1748651452821,-806.79,0.00030685,2]
[363255795,1748651452831,-1055.4,0.00030685,2]
[363255796,1748651452841,-806.79,0.00030685,2]
[363255797,1748651452850,-806.79,0.00030685,2]
[363255798,1748651452859,-806.79,0.00030685,2]
[363255799,1748651452869,-806.79,0.00030685,2]
[363255800,1748651452878,-862.57,0.00030685,2]
[363255801,1748651452888,-229174.48,0.000307,7]
[363255802,1748651452897,-371.30836325,0.000307,2]
[363255803,1748651452906,-327.82579947,0.00030733,2]
[363255804,1748651452915,-152.345332,0.0003079,7]
[363255805,1748651452925,-151.0,0.0003079,7]
[363255806,1748651452934,-300.0,0.00030799,10]
[363255807,1748651452944,-250.0,0.000308,30]
[363255808,1748651452954,-463.981251,0.000308,7]
[363255809,1748651452964,-463.981251,0.000308,7]
[363255810,1748651452973,-151.0,0.000308,7]
[363255811,1748651452983,-151.0,0.000308,7]
[363255812,1748651452993,-154.544763,0.000308,7]
[363255813,1748651453002,-154.544763,0.000308,7]
[363255814,1748651453012,-229188.12,0.000308,7]
[363255815,1748651453022,-500.0,0.00030926,30]
[363255816,1748651453033,-4503.46656889,0.00030934,24]
[363255817,1748651453043,-174.61919141,0.00030947,2]
[363255818,1748651453053,-239.84119403,0.00030947,2]
[363255819,1748651453063,-313.98399738,0.00030947,2]
[363255820,1748651453074,-1199.20597015,0.00030949,2]
[363255821,1748651453084,-330.18586359,0.00031,5]
[363255822,1748651453094,-4000.0,0.00031,2]
[363255823,1748651453104,-4000.0,0.00031,2]
[363255824,1748651453115,-2778.55435236,0.00031,120]
[363255825,1748651453124,-1800.0,0.00031,32]
[363255826,1748651453134,-550.0,0.00031,2]
[363255827,1748651453144,-5679.24,0.00031,7]
[363255828,1748651453155,-300.0,0.00031,2]
[363255829,1748651453164,-150.0,0.00031002,2]
[363255830,1748651453174,-428.56,0.00031031,2]
[363255831,1748651453184,-151.0,0.00031032,7]
[363255832,1748651453195,-151.0,0.00031032,7]
[363255833,1748651453204,-151.0,0.00031032,7]
[363255834,1748651453214,-151.0,0.00031032,7]
[363255835,1748651453224,-151.0,0.00031032,7]
[363255836,1748651453234,-2799.91316558,0.00031037,2]
[363255837,1748651453243,-207.0,0.00031044,11]
[363255838,1748651453253,-209.558063,0.00031176,7]
[363255839,1748651453262,-151.0,0.00031176,7]
[363255840,1748651453271,-275.17,0.000312,2]
[363255841,1748651453282,-150.57,0.00031233,2]
[363255842,1748651453295,-453.99,0.00031233,2]
[363255843,1748651453304,-604.34,0.00031233,2]
[363255844,1748651453314,-2321.05,0.00031233,2]
[363255845,1748651453323,-170.36,0.00031233,2]
[363255846,1748651453333,-300.0,0.00031299,10]
[363255847,1748651453343,-151.0,0.000313,7]
[363255848,1748651453352,-151.0,0.000313,7]
[363255849,1748651453362,-151.0,0.000313,7]
[363255850,1748651453372,-205.035403,0.000313,7]
[363255851,1748651453382,-151.0,0.000313,7]
[363255852,1748651453392,-151.0,0.000313,7]
[363255853,1748651453401,-151.0,0.000313,7]
[363255854,1748651453411,-151.0,0.000313,7]
[363255855,1748651453421,-151.0,0.000313,7]
[363255856,1748651453431,-151.0,0.000313,7]
[363255857,1748651453440,-152.52018,0.000313,7]
[363255858,1748651453450,-151.0,0.000313,7]
[363255859,1748651453459,-151.0,0.000313,7]
[363255860,1748651453469,-167.215382,0.000313,7]
[363255861,1748651453478,-167.215382,0.000313,7]
[363255862,1748651453487,-196.974068,0.000313,7]
[363255863,1748651453497,-196.974068,0.000313,7]
[363255864,1748651453506,-151.0,0.000313,7]
[363255865,1748651453516,-151.0,0.000313,7]
[363255866,1748651453598,-291.767278,0.000313,7]
[363255867,1748651453607,-291.767278,0.000313,7]
[363255868,1748651453617,-151.0,0.000313,7]
[363255869,1748651453626,-180.642932,0.000313,7]
[363255870,1748651453635,-180.642932,0.000313,7]
[363255871,1748651453644,-5464.360598,0.000313,7]
[363255872,1748651453653,-5464.360598,0.000313,7]
[363255873,1748651453662,-260.832496,0.000313,7]
[363255874,1748651453672,-260.832496,0.000313,7]
[363255875,1748651453681,-506.49426244,0.00031356,2]
[363255876,1748651453689,-300.0,0.00031389,10]
[363255877,1748651453699,-20089.52711188,0.0003139,6]
[363255878,1748651453708,-151.0,0.0003139,7]
[363255879,1748651453717,-200.397666,0.0003139,7]
[363255880,1748651453726,-163.534702,0.0003139,7]
[363255881,1748651453735,-163.534702,0.0003139,7]
[363255882,1748651453744,-300.0,0.00031399,10]
[363255883,1748651453753,-559817.93361063,0.000314,5]
[363255884,1748651453762,-72123.19227559,0.000314,5]
[363255885,1748651453771,-151.0,0.000314,7]
[363255886,1748651453780,-151.0,0.000314,7]
[363255887,1748651453790,-463.981251,0.000314,7]
[363255888,1748651453799,-463.981251,0.000314,7]
[363255889,1748651453808,-151.0,0.000314,7]
[363255890,1748651453817,-151.0,0.000314,7]
[363255891,1748651453827,-151.0,0.000314,7]
[363255892,1748651453836,-151.0,0.000314,7]
[363255893,1748651453846,-373.374017,0.000314,7]
[363255894,1748651453855,-373.374017,0.000314,7]
[363255895,1748651453864,-373.374017,0.000314,7]
[363255896,1748651453873,-373.374017,0.000314,7]
[363255897,1748651453883,-151.0,0.000314,7]
[363255898,1748651453892,-151.0,0.000314,7]
[363255899,1748651453902,-151.0,0.000314,7]
[363255900,1748651453911,-151.0,0.000314,7]
[363255901,1748651453920,-151.0,0.000314,7]
[363255902,1748651453930,-151.0,0.000314,7]
[363255903,1748651453939,-151.0,0.000314,7]
[363255904,1748651453949,-151.0,0.000314,7]
[363255905,1748651453958,-151.0,0.000314,7]
[363255906,1748651453967,-151.0,0.000314,7]
[363255907,1748651453976,-151.0,0.000314,7]
[363255908,1748651453985,-151.0,0.000314,7]
[363255909,1748651453995,-151.0,0.000314,7]
[363255910,1748651454004,-151.0,0.000314,7]
[363255911,1748651454013,-151.0,0.000314,7]
[363255912,1748651454023,-151.0,0.000314,7]
[363255913,1748651454034,-151.0,0.000314,7]
[363255914,1748651454043,-154.544763,0.000314,7]
[363255915,1748651454053,-151.0,0.000314,7]
[363255916,1748651454062,-154.544763,0.000314,7]
[363255917,1748651454071,-151.0,0.000314,7]
[363255918,1748651454080,-167.215382,0.000314,7]
[363255919,1748651454090,-167.215382,0.000314,7]
[363255920,1748651454100,-151.0,0.000314,7]
[363255921,1748651454109,-196.974068,0.000314,7]
[363255922,1748651454119,-196.974068,0.000314,7]
[363255923,1748651454128,-291.767278,0.000314,7]
[363255924,1748651454138,-291.767278,0.000314,7]
[363255925,1748651454147,-151.0,0.000314,7]
[363255926,1748651454156,-163.534702,0.000314,7]
[363255927,1748651454165,-163.534702,0.000314,7]
[363255928,1748651454175,-180.642932,0.000314,7]
[363255929,1748651454184,-180.642932,0.000314,7]
[363255930,1748651454195,-5464.360598,0.000314,7]
[363255931,1748651454204,-5464.360598,0.000314,7]
[363255932,1748651454214,-260.832496,0.000314,7]
[363255933,1748651454223,-260.832496,0.000314,7]
[363255934,1748651454234,-300.0,0.00031429,10]
[363255935,1748651454246,-19011.75015964,0.0003143,4]
[363255936,1748651454255,-300.0,0.00031455,10]
[363255937,1748651454268,-801.0,0.00031456,2]
[363255938,1748651454278,-634.0,0.00031456,2]
[363255939,1748651454293,-924.0,0.00031456,2]
[363255940,1748651454303,-1032.281,0.00031456,2]
[363255941,1748651454312,-556.0,0.00031456,2]
[363255942,1748651454321,-1466.0,0.00031456,2]
[363255943,1748651454331,-588.0,0.00031456,2]
[363255944,1748651454340,-1155.0,0.00031456,2]
[363255945,1748651454350,-4068.0,0.00031456,2]
[363255946,1748651454360,-155.0,0.00031456,2]
[363255947,1748651454370,-155.0,0.00031456,2]
[363255948,1748651454380,-6929.0,0.00031456,2]
[363255949,1748651454389,-941.0,0.00031456,2]
[363255950,1748651454400,-204.15338289,0.00031473,30]
[363255951,1748651454411,-7778.12,0.00031507,2]
[363255952,1748651454419,-4503.46656889,0.00031624,25]
[363255953,1748651454429,-1613.58,0.00031644,2]
[363255954,1748651454439,-2799.91316558,0.00031658,2]
[363255955,1748651454448,-229174.48,0.000317,7]
[363255956,1748651454458,-150.0,0.00031723,2]
[363255957,1748651454468,-152.0,0.00031836,5]
[363255958,1748651454478,-155.60564148,0.00031973,30]
[363255959,1748651454487,-172.8951572,0.00031973,30]
[363255960,1748651454497,-1538.522674,0.00032,2]
[363255961,1748651454506,-35000.0,0.00032,2]
[363255962,1748651454516,-1016.0,0.00032,5]
[363255963,1748651454526,-1000.0,0.00032,12]
[363255964,1748651454536,-4000.0,0.00032,2]
[363255965,1748651454546,-4000.0,0.00032,2]
[363255966,1748651454555,-93673.77433645,0.00032,7]
[363255967,1748651454564,-730.0,0.00032,2]
[363255968,1748651454574,-11455.81339093,0.00032,2]
[363255969,1748651454584,-155.0,0.00032,10]
[363255970,1748651454593,-1800.0,0.00032,33]
[363255971,1748651454603,-151.0,0.00032,7]
[363255972,1748651454613,-151.0,0.00032,7]
[363255973,1748651454623,-463.981251,0.00032,7]
[363255974,1748651454633,-463.981251,0.00032,7]
[363255975,1748651454642,-273.728208,0.00032,7]
[363255976,1748651454651,-273.728208,0.00032,7]
[363255977,1748651454661,-500.0,0.00032,2]
[363255978,1748651454670,-4000.0,0.00032,4]
[363255979,1748651454680,-150.57,0.00032055,2]
[363255980,1748651454690,-151.0,0.00032055,7]
[363255981,1748651454700,-151.0,0.00032055,7]
[363255982,1748651454709,-154.544763,0.00032055,7]
[363255983,1748651454719,-151.0,0.00032055,7]
[363255984,1748651454728,-154.544763,0.00032055,7]
[363255985,1748651454738,-196.974068,0.00032055,7]
[363255986,1748651454748,-196.974068,0.00032055,7]
[363255987,1748651454758,-151.0,0.00032055,7]
[363255988,1748651454767,-180.642932,0.00032055,7]
[363255989,1748651454776,-180.642932,0.00032055,7]
[363255990,1748651454787,-260.832496,0.00032055,7]
[363255991,1748651454796,-260.832496,0.00032055,7]
[363255992,1748651454806,-151.0,0.00032071,7]
[363255993,1748651454816,-425.7526,0.00032099,2]
[363255994,1748651454826,-151.0,0.000321,7]
[363255995,1748651454835,-229188.12,0.000321,7]
[363255996,1748651454845,-163.534702,0.0003212,7]
[363255997,1748651454855,-163.534702,0.0003212,7]
[363255998,1748651454865,-5464.360598,0.0003212,7]
[363255999,1748651454875,-5464.360598,0.0003212,7]
[363256000,1748651454884,-155.60564148,0.00032164,30]
[363256001,1748651454894,-151.0,0.000322,7]
[363256002,1748651454903,-151.0,0.000322,7]
[363256003,1748651454914,-287.069126,0.000322,7]
[363256004,1748651454924,-151.0,0.000322,7]
[363256005,1748651454935,-151.0,0.000322,7]
[363256006,1748651454944,-200.630112,0.000322,7]
[363256007,1748651454954,-167.215382,0.000322,7]
[363256008,1748651454963,-167.215382,0.000322,7]
[363256009,1748651454973,-258.718021,0.000322,7]
[363256010,1748651454983,-5679.24,0.000322,7]
[363256011,1748651454994,-291.767278,0.000322,7]
[363256012,1748651455004,-291.767278,0.000322,7]
[363256013,1748651455013,-413.0,0.00032219,14]
[363256014,1748651455023,-172.8951572,0.00032247,30]
[363256015,1748651455034,-2799.91316558,0.00032279,2]
[363256016,1748651455046,-254.16,0.00032284,120]
[363256017,1748651455056,-151.0,0.000323,7]
[363256018,1748651455066,-373.374017,0.000323,7]
[363256019,1748651455076,-373.374017,0.000323,7]
[363256020,1748651455086,-151.0,0.000323,7]
[363256021,1748651455095,-152.074235,0.000323,7]
[363256022,1748651455105,-151.0,0.000323,7]
[363256023,1748651455115,-151.0,0.000323,7]
[363256024,1748651455125,-151.0,0.000323,7]
[363256025,1748651455135,-151.0,0.000323,7]
[363256026,1748651455145,-151.0,0.000323,7]
[363256027,1748651455155,-4503.46656889,0.00032314,26]
[363256028,1748651455165,-181.08010149,0.00032316,2]
[363256029,1748651455175,-248.71531821,0.00032316,2]
[363256030,1748651455185,-155.60564148,0.00032384,30]
[363256031,1748651455195,-150.0,0.00032444,2]
[363256032,1748651455206,-7710.0,0.00032463,7]
[363256033,1748651455216,-207.0,0.00032492,14]
[363256034,1748651455226,-683.29,0.00032494,2]
[363256035,1748651455236,-1073.21827431,0.000325,2]
[363256036,1748651455246,-172.8951572,0.00032548,30]
[363256037,1748651455256,-327.82579947,0.00032567,2]
[363256038,1748651455266,-275.17,0.00032569,2]
[363256039,1748651455276,-155.60564148,0.00032575,30]
[363256040,1748651455291,-806.79,0.00032603,2]
[363256041,1748651455301,-806.79,0.00032603,2]
[363256042,1748651455311,-806.79,0.00032603,2]
[363256043,1748651455322,-1612.42,0.00032603,2]
[363256044,1748651455332,-806.79,0.00032603,2]
[363256045,1748651455343,-805.05,0.00032603,2]
[363256046,1748651455353,-806.79,0.00032603,2]
[363256047,1748651455363,-806.79,0.00032603,2]
[363256048,1748651455374,-1613.04,0.00032603,2]
[363256049,1748651455384,-806.79,0.00032603,2]
[363256050,1748651455394,-200.49954849,0.00032603,3]
[363256051,1748651455405,-1000.0,0.00032756,2]
[363256052,1748651455415,-155.60564148,0.00032795,30]
[363256053,1748651455426,-157.053106,0.00032798,120]
[363256054,1748651455436,-4675.58146945,0.000328,2]
[363256055,1748651455446,-172.8951572,0.00032822,30]
[363256056,1748651455457,-185.1356738,0.00032876,7]
[363256057,1748651455468,-220.25297514,0.00032876,120]
[363256058,1748651455479,-307.065,0.00032876,2]
[363256059,1748651455489,-243.98714114,0.00032876,2]
[363256060,1748651455500,-480.08429144,0.00032876,2]
[363256061,1748651455513,-469.58366235,0.00032876,2]
[363256062,1748651455523,-500.0,0.00032876,2]
[363256063,1748651455533,-539.41894119,0.00032876,2]
[363256064,1748651455543,-500.0,0.00032876,2]
[363256065,1748651455553,-500.0,0.00032876,2]
[363256066,1748651455562,-500.0,0.00032876,2]
[363256067,1748651455572,-511.07968269,0.00032876,2]
[363256068,1748651455582,-295.48575944,0.00032876,2]
[363256069,1748651455591,-500.0,0.00032876,2]
[363256070,1748651455600,-487.12633764,0.00032876,2]
[363256071,1748651455610,-500.0,0.00032876,2]
[363256072,1748651455620,-500.0,0.00032876,2]
[363256073,1748651455629,-500.0,0.00032876,2]
[363256074,1748651455639,-500.0,0.00032876,2]
[363256075,1748651455649,-500.0,0.00032876,2]
[363256076,1748651455659,-500.0,0.00032876,2]
[363256077,1748651455669,-500.0,0.00032876,2]
[363256078,1748651455679,-500.0,0.00032876,2]
[363256079,1748651455689,-500.0,0.00032876,2]
[363256080,1748651455699,-500.0,0.00032876,2]
[363256081,1748651455709,-500.0,0.00032876,2]
[363256082,1748651455719,-500.0,0.00032876,2]
[363256083,1748651455729,-500.0,0.00032876,2]
[363256084,1748651455739,-295.84110112,0.00032876,2]
[363256085,1748651455749,-500.0,0.00032876,2]
[363256086,1748651455759,-500.0,0.00032876,2]
[363256087,1748651455769,-500.0,0.00032876,2]
[363256088,1748651455779,-500.0,0.00032876,2]
[363256089,1748651455791,-500.0,0.00032876,2]
[363256090,1748651455801,-500.0,0.00032876,2]
[363256091,1748651455811,-500.0,0.00032876,2]
[363256092,1748651455821,-500.0,0.00032876,2]
[363256093,1748651455831,-500.0,0.00032876,2]
[363256094,1748651455841,-500.0,0.00032876,2]
[363256095,1748651455851,-293.35117802,0.00032876,2]
[363256096,1748651455861,-500.0,0.00032876,2]
[363256097,1748651455871,-500.0,0.00032876,2]
[363256098,1748651455881,-500.0,0.00032876,2]
[363256099,1748651455892,-500.0,0.00032876,2]
[363256100,1748651455902,-496.63568154,0.00032876,2]
[363256101,1748651455912,-429.90732317,0.00032876,2]
[363256102,1748651455922,-429.73507822,0.00032876,2]
[363256103,1748651455932,-451.92000245,0.00032876,2]
[363256104,1748651455942,-158.26720218,0.00032876,2]
[363256105,1748651455953,-168.65282899,0.00032876,2]
[363256106,1748651455963,-500.0,0.00032876,2]
[363256107,1748651455973,-500.0,0.00032876,2]
[363256108,1748651455983,-311.73900985,0.00032876,2]
[363256109,1748651455994,-5214.6,0.00032876,5]
[363256110,1748651456004,-200.0,0.00032877,60]
[363256111,1748651456014,-333.09,0.00032877,2]
[363256112,1748651456025,-7778.12,0.00032877,2]
[363256113,1748651456035,-800.0,0.00032877,5]
[363256114,1748651456046,-150.0,0.00032877,2]
[363256115,1748651456057,-150.0,0.00032877,2]
[363256116,1748651456067,-300.86,0.00032877,2]
[363256117,1748651456078,-150.0,0.00032877,2]
[363256118,1748651456088,-163.05,0.00032877,2]
[363256119,1748651456098,-150.0,0.00032877,2]
[363256120,1748651456109,-225.75,0.00032877,2]
[363256121,1748651456119,-150.0,0.00032877,2]
[363256122,1748651456130,-163.05,0.00032877,2]
[363256123,1748651456140,-163.05,0.00032877,2]
[363256124,1748651456150,-150.0,0.00032877,2]
[363256125,1748651456160,-326.01,0.00032877,2]
[363256126,1748651456170,-150.0,0.00032877,2]
[363256127,1748651456181,-163.05,0.00032877,2]
[363256128,1748651456191,-163.05,0.00032877,2]
[363256129,1748651456203,-163.05,0.00032877,2]
[363256130,1748651456214,-163.05,0.00032877,2]
[363256131,1748651456225,-163.05,0.00032877,2]
[363256132,1748651456235,-162.95,0.00032877,2]
[363256133,1748651456246,-150.0,0.00032877,2]
[363256134,1748651456256,-500.0,0.00032877,2]
[363256135,1748651456266,-931.0,0.00032877,2]
[363256136,1748651456276,-2258.0,0.00032896,2]
[363256137,1748651456290,-4419.5020761,0.000329,2]
[363256138,1748651456300,-2799.91316558,0.000329,2]
[363256139,1748651456310,-344.36693781,0.000329,2]
[363256140,1748651456320,-1200.0,0.000329,2]
[363256141,1748651456331,-571.91294424,0.000329,2]